Cogmind - Beta 13 @@@ ROGUE MODE // 2024.07.25 @ 00:11:40 Player: Necoji Result: Destroyed by Y-45 Defender with Beam Rifle Performance ------------- Evolutions (1) 500 Regions Visited (2) 400 Robots Destroyed (11) 55 Value Destroyed (433) 433 Prototype IDs (0) 0 Alien Tech Used (0) 0 Bonus (0) 0 TOTAL SCORE: 1388 Bonus ------- None Cogmind --------- Core Integrity 0/400 Matter 88/300 Energy 71/100 System Corruption 0% Temperature Cool (15) Movement Walking (180) Ox1 Location -9/Materials Parts ------- > --- POWER (2) -------- (None) > --- PROPULSION (2) --- VSS Leg VSS Leg > --- UTILITY (3) ------ High-capacity Storage Unit > --- WEAPON (2) ------- Scythe > --- INVENTORY (20) --- Aluminum Leg Aluminum Leg VSS Leg VSS Leg Small Storage Unit Reaction Control System Reaction Control System Shield Generator Shield Generator Medium Laser Beam Rifle Assault Rifle Improved Light Cannon Scythe Scythe Scythe Peak State ------------ > --- POWER ------------ Ion Engine > --- PROPULSION ------- VSS Leg VSS Leg > --- UTILITY ---------- High-capacity Storage Unit Seismic Detector Shield Generator > --- WEAPON ----------- Particle Gun Autogun > --- INVENTORY -------- Aluminum Leg Aluminum Leg VSS Leg VSS Leg Small Storage Unit Reaction Control System Reaction Control System Reaction Control System Shield Generator Shield Generator Medium Laser Beam Rifle Assault Rifle Improved Light Cannon Rocket Launcher Scythe Scythe Scythe Scythe [Rating: 19] Favorites ----------- Power Ion Engine Engine Ion Engine Propulsion Aluminum Leg Treads Light Treads Leg Aluminum Leg Wheel Wheel Utility Small Storage Unit Device Seismic Detector Storage Small Storage Unit Protection Hardened Light Armor Plating Weapon Particle Gun Energy Gun Particle Gun Ballistic Gun Autogun Launcher Rocket Launcher Slashing Weapon Scythe Build | -11 -10 -9 ------- Run | Yrd Mat Mat Slots Evolved 2 | . . 2 Power 1 | . . 1 Propulsion . | . . . Utility 1 | . . 1 Weapon . | . . . Parts Attached 25 | 6 2 17 Power 2 | 1 . 1 Engine 2 | 1 . 1 Core . | . . . Reactor . | . . . Propulsion 8 | 2 . 6 Treads 1 | 1 . . Leg 6 | . . 6 Wheel 1 | 1 . . Hover . | . . . Flight . | . . . Utility 7 | 1 1 5 Device 3 | . 1 2 Storage 2 | 1 . 1 Processor . | . . . Hackware . | . . . Protection 2 | . . 2 Artifact . | . . . Weapon 8 | 2 1 5 Energy Gun 3 | . 1 2 Energy Cannon . | . . . Ballistic Gun 3 | 2 . 1 Ballistic Cannon . | . . . Launcher 1 | . . 1 Special Weapon . | . . . Impact Weapon . | . . . Slashing Weapon 1 | . . 1 Piercing Weapon . | . . . Special Melee Weapon . | . . . Unidentified Prototypes . | . . . Parts Lost 12 | . 4 8 Power 2 | . 1 1 Propulsion 1 | . 1 . Utility 5 | . . 5 Weapon 4 | . 2 2 Highest Loss Streak 7 | . 2 7 To Critical Strikes . | . . . Average Slot Usage (%) 80 | . 79 80 Engine 10 | . 11 10 Treads 3 | . 10 . Leg 13 | . . 21 Wheel 2 | . 6 . Device 14 | . 10 16 Storage 12 | . 14 11 Energy Gun 8 | . 5 10 Ballistic Gun 12 | . 21 8 Naked Turns . | . . . Heaviest Build 55 | 11 13 55 Greatest Support 24 | 20 20 24 Greatest Overweight (x) 17 | . 4 17 Average Overweight (x) . | . . . Largest Inventory Capacity 20 | 8 8 20 Average Capacity 10 | 7 8 12 Most Carried 20 | 5 7 20 Average Carried 7 | 4 5 8 Final Capacity 20 | 8 8 20 Final Carried 16 | 5 7 16 Class Distribution -------------------- 100% | Mutant Dominant Class ---------------- Mutant | -10/Materials Mutant | -9/Materials Resources | -11 -10 -9 ----------- Run | Yrd Mat Mat Matter Collected 344 | 211 86 47 Remotely . | . . . Salvage Created 441 | . 125 316 Parts 25 | . 7 18 Haulers Intercepted . | . . . Recyclers Shooed . | . . . Parts Field Recycled . | . . . Retrieved Matter . | . . . Parts Self-Destructed . | . . . Prevented . | . . . Kills | -11 -10 -9 ------- Run | Yrd Mat Mat Combat Hostiles Destroyed 11 | . 4 7 Melee 2 | . 1 1 Guns 9 | . 3 6 Classes Destroyed 2 | . 1 1 Grunt 8 | . 4 4 Sentry 3 | . . 3 Best Kill Streak 3 | . 2 3 Combat Bots Only 3 | . 2 3 Max Kills in Single Turn 1 | . 1 1 Gunslinging . | . . . Exploded . | . . . Melee 1 | . 1 1 Uniques/NPCs Destroyed . | . . . Combat | -11 -10 -9 -------- Run | Yrd Mat Mat Hostile Shots Fired 229 | . 62 167 Missed 57 | . 17 40 Damage Taken 2113 | . 516 1597 Core 560 | . 149 411 Absorbed by Shields 75 | . . 75 Core Remaining (%) 70 | 100 40 . Volleys Fired 47 | . 12 35 Largest 2 | . 2 2 Hottest 98 | . 40 98 Shots Fired 89 | . 24 65 Gun 86 | . 24 62 Cannon . | . . . Launcher 3 | . . 3 Special . | . . . Kinetic 52 | . 24 28 Thermal 34 | . . 34 Explosive 3 | . . 3 Electromagnetic . | . . . Robot Hit Streak 10 | . 10 6 Robot Miss Streak 11 | . 2 11 Penetration Max . | . . . Secondary Targets . | . . . Shots Hit Robots 52 | . 20 32 Core Hits 24 | . 10 14 Critical Kills 1 | . 1 . Critical Parts Destroyed 1 | . 1 . Critical Strikes 2 | . 2 . Destroy 2 | . 2 . Melee Attacks 1 | . . 1 Impact . | . . . Slashing 1 | . . 1 Piercing . | . . . Sneak Attacks . | . . . Combat Hostiles . | . . . Follow-up Attacks . | . . . Damage Inflicted 833 | . 217 616 Guns 724 | . 199 525 Cannons . | . . . Explosions 57 | . . 57 Melee 31 | . . 31 Ramming 21 | . 18 3 Kinetic 497 | . 199 298 Thermal 227 | . . 227 Explosive 57 | . . 57 Electromagnetic . | . . . Impact . | . . . Slashing 31 | . . 31 Piercing . | . . . Highest Corruption . | . . . Average Corruption . | . . . Corruption Purged . | . . . Corruption Blocked . | . . . Overload Shots . | . . . Overflow Damage . | . . . Projectiles . | . . . Explosions . | . . . Melee . | . . . Knockbacks 1 | . 1 . Impact 1 | . 1 . Kinetic . | . . . Secondary . | . . . Self-Inflicted Damage 49 | . . 49 Shots 2 | . . 2 Rammed 7 | . 7 . Targets Rammed 12 | . 8 4 Kicked 4 | . . 4 Crushed 1 | . 1 . Highest Temperature 275 | . 12 275 Average Temperature 76 | . 7 82 Received Heat Transfer 974 | . 282 692 Siege Activations . | . . . Robots Corrupted . | . . . Combat Hostiles . | . . . Parts Fried . | . . . Impact Corruptions . | . . . Robots Melted . | . . . Combat Hostiles . | . . . Parts Melted . | . . . Heat Transferred 555 | . . 555 Parts Sabotaged . | . . . Parts Stolen . | . . . Parts Stripped . | . . . Power Chain Reactions . | . . . Alert | -11 -10 -9 ------- Run | Yrd Mat Mat Peak Influence 186 | . 125 186 Initial 5 | . . 5 Average 47 | . 58 47 Maximum Alert Level . | . . . Low Security (%) 100 | 100 100 100 Level 1 . | . . . Level 2 . | . . . Level 3 . | . . . Level 4 . | . . . Level 5 . | . . . High Security . | . . . Max Security . | . . . Squads Dispatched 4 | . 3 1 Investigation 2 | . 1 1 Extermination . | . . . Reinforcement 2 | . 2 . Assault . | . . . Garrison . | . . . Intercept . | . . . Searches Triggered . | . . . Construction Impeded . | . . . Haulers Reinforced . | . . . Active Scanning Responses . | . . . Cargo Convoy Interrupts . | . . . Stealth | -11 -10 -9 --------- Run | Yrd Mat Mat Distress Signals 5 | . 3 2 Communications Jammed . | . . . Distress Signals . | . . . Times Spotted 28 | . 12 16 Peak Tracking Total 5 | . 5 5 Tactical Retreats 1 | . 1 . Traps | -11 -10 -9 ------- Run | Yrd Mat Mat Traps Triggered 3 | . 2 1 Indirectly . | . . . Trap Hack Attempts . | . . . Triggered . | . . . Disarmed . | . . . Reprogrammed . | . . . Reused . | . . . Traps Extracted . | . . . Installed . | . . . Triggered . | . . . Machines | -11 -10 -9 ---------- Run | Yrd Mat Mat Machines Disabled . | . . . Max in Single Turn . | . . . Machines Repaired . | . . . Machines Dismantled . | . . . Machines Sabotaged . | . . . Overloaded Fab Kills . | . . . Hacking | -11 -10 -9 --------- Run | Yrd Mat Mat Machines Accessed . | . . . Terminals . | . . . Fabricators . | . . . Repair Stations . | . . . Recycling Units . | . . . Scanalyzers . | . . . Garrison Access . | . . . Total Hacks . | . . . Successful . | . . . Failed . | . . . Catastrophic . | . . . Database Lockouts . | . . . Manual . | . . . Terminals . | . . . Fabricators . | . . . Repair Stations . | . . . Recycling Units . | . . . Scanalyzers . | . . . Garrison Access . | . . . Terminal Hacks . | . . . Fabricator Hacks . | . . . Repair Station Hacks . | . . . Recycling Unit Hacks . | . . . Scanalyzer . | . . . Garrison Access Hacks . | . . . Unauthorized Hacks . | . . . Terminals . | . . . Fabricators . | . . . Repair Stations . | . . . Recycling Units . | . . . Scanalyzers . | . . . Garrison Access . | . . . Data Cores Recovered . | . . . Used . | . . . Hacking Detections . | . . . Full Trace Events . | . . . Feedback Events . | . . . Feedback Blocked . | . . . Robot Schematics Acquired . | . . . Robots Built . | . . . Authchips . | . . . Time . | . . . Total Robot Build Rating . | . . . Part Schematics Acquired . | . . . Parts Built . | . . . Authchips . | . . . Time . | . . . Total Part Build Rating . | . . . Parts Repaired . | . . . Time . | . . . Parts Recycled . | . . . Recycled Matter . | . . . Retrieved Matter . | . . . Retrieved Components . | . . . Parts Scanalyzed . | . . . Part Schematics Acquired . | . . . Parts Damaged . | . . . Bothacking | -11 -10 -9 ------------ Run | Yrd Mat Mat Used RIF Installer . | . . . Robots Hacked . | . . . Non-combat . | . . . Combat . | . . . Robot Hacks Applied . | . . . Relay Couplers Released . | . . . Fabnet Peak Effective % . | . . . Robots Rewired . | . . . Allies Hacked . | . . . Hacks Repelled . | . . . Allies | -11 -10 -9 -------- Run | Yrd Mat Mat Total Allies . | . . . Largest Group . | . . . Highest-Rated Group . | . . . Highest-Rated Ally . | . . . Total Orders . | . . . Ally Attacks . | . . . Total Damage . | . . . Kills . | . . . Allies Corrupted . | . . . Allies Melted . | . . . Intel | -11 -10 -9 ------- Run | Yrd Mat Mat Robot Analysis Total . | . . . Derelict Logs Recovered . | . . . Drone Launches . | . . . Drone Recoveries . | . . . Exploration | -11 -10 -9 ------------- Run | Yrd Mat Mat Turns Passed 1374 | 108 455 811 Spaces Moved 672 | 75 229 368 Core 89 | 22 62 5 Treads 219 | 52 167 . Legs 363 | . . 363 Wheels 1 | 1 . . Hover . | . . . Flight . | . . . Fastest Speed 50 | 50 100 120 Average Speed 158 | 126 166 160 Slowest Speed 900 | 160 250 900 Overloaded Moves . | . . . Propulsion Burnouts . | . . . Robots Hopped . | . . . Cave-ins Triggered . | . . . Exploration Rate (%) 28 | 4 49 33 Regions Visited 2 Branch Regions . Pre-discovered Areas . | . . . Known Exits Taken . | . . . Unknown Exits Taken 2 | 1 1 . Scrap Searched . | . . . Spaces Dug 20 | . . 20 Terrain Destroyed 28 | . . 28 Melee . | . . . Projectile . | . . . AOE 28 | . . 28 Terrain Rammed . | . . . Walls Destroyed . | . . . Machines Disabled . | . . . Actions | -11 -10 -9 --------- Run | Yrd Mat Mat Total 889 | 85 277 527 Wait 95 | . 23 72 Move 670 | 74 228 368 Hop . | . . . Pick Up 32 | 5 3 24 Fast Attach 6 | 6 . . Attach 14 | . 2 12 Detach 2 | . 1 1 Swap 5 | . . 5 Drop 5 | . . 5 Fire 47 | . 12 35 Melee 1 | . . 1 Ram . | . . . Kick 4 | . . 4 Crush 8 | . 8 . Escape Stasis . | . . . Rewire . | . . . Trap . | . . . Miscellaneous . | . . . Route ------- -11/Scrapyard -10/Materials (discovered 2 exits: [*Mat] / [*Min]) -9/Materials (discovered 1 exit: [*Mat]) History --------- Turn | Location | Event 3 | -11/Scrapyard | Discovered new exit (range 16) 109 | -11/Scrapyard | Entered Materials 227 | -10/Materials | Discovered new exit (range 13) 314 | -10/Materials | Build established: Mutant 556 | -10/Materials | Discovered new exit (range 9) 560 | -10/Materials | Core integrity fell below 50% 564 | -10/Materials | Entered another Materials area 564 | -9/Materials | Evolved 2 slots: Power x1, Utility x1 1001 | -9/Materials | Discovered new exit (range 12) 1336 | -9/Materials | Core integrity fell below 50% 1369 | -9/Materials | Core integrity fell below 20% 1375 | -9/Materials | Destroyed by Y-45 Defender with Beam Rifle Last Messages --------------- 01188_ Acquired Scythe. 01206_ Acquired Reaction Control System. 01262_ Triggered Alarm Trap. 01262_ An alarm sounds. 01262_ ALERT: Alarm triggered, dispatching investigation squad. 01280_ Dropped Reaction Control System. 01284_ Acquired Hrd. Light Armor Plating. 01295_ Dropped Autogun. 01321_ The unstable cave ceiling collapses. 01324_ Particle Gun destroyed. 01329_ Seismic Detector destroyed. 01330_ Shield Generator destroyed. 01342_ Rocket Launcher destroyed. 01343_ M-13 Machinist repairs Y-45 Defender. 01343_ Ion Engine destroyed. 01345_ M-13 Machinist repairs Heat Sink. 01349_ The unstable cave ceiling collapses. 01369_ Hrd. Light Armor Plating destroyed. 01373_ G-34 Mercenary destroyed. 01374_ Acquired 47 matter. Map ----- +----------------------------------------------------+ | | | | | | | | | | | | | | | | | | | | | | | | | | | | | | | | | | | | | | | ### ##????????????????????? | | ##?#?????????????????? | | # # #?????????????????? | | # Y #?????????????????? | | # ##?????????????????? | | *[#m #?????????????????? | | # @[! #?????????????????? | | # !==# [[]]!!#????????????? | | # g# #[[]]!!#????????????? | | #[ g # #?? #????????????? | | ## # #???? #????????????? | | ###### #?????? ???????????? | | ?????# #???????????????????? | | ?????# #???????????????????? | | ?????# #???????????????????? | | ?????# #???????????????????? | | ?????# #???????????????????? | | ?##### #???????????????????? | | ?# #???????????????????? | | ?# #???????????????????? | | ?# ##+#????????????????? | | ?# ######???????????? | | ?# ?????? | | ?# ######### ???????? | | ?##### #???????????????????? | | ?????# #???????????????????? | | ?????# #???????????????????? | | ?????# ####### """???????? | | ?????# / """"???????? | | ######### #### """"???????? | | # # #????????????????? | +----------------------------------------------------+ Best States ------------- Heat Dissipation 28 Energy Generation 10 Energy Capacity 250 Matter Stores 300 Matter Capacity 300 Sight Range 16 Terrain Scan Range 14 Terrain Scan Density 10 Armor Coverage 300 Evasion (%) 55 Recoil Reduction 1 Item Schematics ----------------- None Robot Schematics ------------------ None Fabricated ------------ Nothing Alien Tech Used ----------------- None Achievements -------------- None Challenges ------------ None Game ------ Seed DispersionDisruptorCharger Manual? 0 Play Time 00:14:04 Cumulative 2.6 hours Start 2024.07.24 @ 23:39:05 End 2024.07.25 @ 00:11:40 Sessions 2 Manual Loads 0 Difficulty Rogue Special Mode None Game No. 11 Rogue 11 Adventurer 0 Explorer 0 Win Type - Total 0 Types 0/0/0/0/0/0/0/0/0 Lore% 2 Gallery% 6 Achievement% 5 Wizard Run 0 Options --------- Layout 0 ASCII 1 Keyboard 1 Movement Vi Keybinds 1 Fullscreen 2 Font 24/Proggy Map View 76x50 Zoom Use 0% Tactical HUD 1 Map Filters NONE Filters NONE Steam 1 RUN: 1cefdcb2-9b73-4f52-b5ee-4d4e213d50f4